fUST/lending_fUST_20260321
["ID","MTS","AMOUNT","RATE_DAILY","PERIOD"]
[408668529,1774101039551,-236.75590028,0.0001,2]
[408668530,1774101039566,-318.95607643,0.0001,2]
[408668531,1774101039576,-226.54350859,0.0001,2]
[408668532,1774101039586,-237.29725647,0.0001,2]
[408668533,1774101039595,-252.97007024,0.0001,2]
[408668534,1774101039605,-151.50565337,0.0001,2]
[408668535,1774101039615,-194.99977778,0.0001,2]
[408668536,1774101039625,-152.0417379,0.0001,2]
[408668537,1774101039635,-3000.90286105,0.0001,2]
[408668538,1774101039645,-153.43872844,0.0001,2]
[408668539,1774101039654,-183.07389508,0.0001,2]
[408668540,1774101039665,-172.20316389,0.0001,2]
[408668541,1774101039675,-4237.41553562,0.0001,2]
[408668542,1774101039684,-162.37944299,0.0001,2]
[408668543,1774101039694,-165.97529065,0.0001,2]
[408668544,1774101039704,-210.83401686,0.0001,2]
[408668545,1774101039714,-170.20924775,0.0001,2]
[408668546,1774101039723,-1282.33997203,0.0001,2]
[408668547,1774101039733,-180.05409796,0.0001,2]
[408668548,1774101039743,-600.0,0.00010097,2]
[408668549,1774101039753,-1000.0,0.00010201,2]
[408668550,1774101039763,-1210.972228,0.00010216,2]
[408668551,1774101039773,-264.655433,0.00010236,2]
[408668552,1774101039783,-500.0,0.00010301,2]
[408668553,1774101039793,-1210.972228,0.00010343,2]
[408668554,1774101039803,-2312.83697232,0.00010462,2]
[408668555,1774101039814,-1210.972228,0.00010471,2]
[408668556,1774101039823,-500.0,0.00010521,2]
[408668557,1774101039834,-1000.0,0.00010521,2]
[408668558,1774101039843,-1210.972228,0.00010599,2]
[408668559,1774101039853,-264.655433,0.00010633,2]
[408668560,1774101039863,-1210.972228,0.00010726,2]
[408668561,1774101039873,-1500.0,0.00010748,2]
[408668562,1774101039883,-34080.11454603,0.0001089,2]
[408668563,1774101039892,-348.130999,0.0001089,2]
[408668564,1774101039903,-151.0,0.0001089,2]
[408668565,1774101039913,-151.0,0.0001089,2]
[408668566,1774101039923,-515.840372,0.0001089,2]
[408668567,1774101039933,-188.331015,0.0001089,2]
[408668568,1774101039943,-515.840372,0.0001089,2]
[408668569,1774101039953,-188.331015,0.0001089,2]
[408668570,1774101039963,-515.840372,0.0001089,2]
[408668571,1774101039973,-188.331015,0.0001089,2]
[408668572,1774101039983,-515.840372,0.0001089,2]
[408668573,1774101039993,-188.331015,0.0001089,2]
[408668574,1774101040003,-151.0,0.0001089,2]
[408668575,1774101040014,-151.0,0.0001089,2]
[408668576,1774101040023,-151.0,0.0001089,2]
[408668577,1774101040034,-151.0,0.0001089,2]
[408668578,1774101040044,-151.0,0.0001089,2]
[408668579,1774101040054,-393.755517,0.0001089,2]
[408668580,1774101040064,-393.755517,0.0001089,2]
[408668582,1774101040074,-393.755517,0.0001089,2]
[408668583,1774101040085,-393.755517,0.0001089,2]
[408668584,1774101040095,-369.159836,0.0001089,2]
[408668585,1774101040105,-369.159836,0.0001089,2]
[408668587,1774101040115,-369.159836,0.0001089,2]
[408668589,1774101040125,-190.466886,0.0001089,2]
[408668591,1774101040134,-190.466886,0.0001089,2]
[408668593,1774101040144,-369.159836,0.0001089,2]
[408668595,1774101040153,-190.466886,0.0001089,2]
[408668597,1774101040163,-190.466886,0.0001089,2]
[408668599,1774101040175,-151.0,0.0001089,2]
[408668601,1774101040184,-3340.696821,0.0001089,2]
[408668603,1774101040193,-3340.696821,0.0001089,2]
[408668605,1774101040203,-3340.696821,0.0001089,2]
[408668607,1774101040213,-3340.696821,0.0001089,2]
[408668609,1774101040222,-2657.309431,0.0001089,2]
[408668611,1774101040232,-2657.309431,0.0001089,2]
[408668614,1774101040241,-2657.309431,0.0001089,2]
[408668616,1774101040251,-2657.309431,0.0001089,2]
[408668619,1774101040260,-1528.469932,0.0001089,2]
[408668621,1774101040273,-1528.469932,0.0001089,2]
[408668623,1774101040283,-1528.469932,0.0001089,2]
[408668625,1774101040292,-1528.469932,0.0001089,2]
[408668627,1774101040302,-151.0,0.0001089,2]
[408668629,1774101040312,-151.0,0.0001089,2]
[408668631,1774101040322,-1007.1,0.000109,2]
[408668633,1774101040331,-296.51231589,0.00010959,3]
[408668634,1774101040342,-15380.3736,0.00010959,2]
[408668636,1774101040351,-348.130999,0.00010959,2]
[408668638,1774101040361,-348.130999,0.00010959,2]
[408668641,1774101040371,-151.0,0.00010959,2]
[408668643,1774101040381,-151.0,0.00010959,2]
[408668644,1774101040390,-151.0,0.00010959,2]
[408668646,1774101040399,-151.0,0.00010959,2]
[408668649,1774101040409,-151.0,0.00010959,2]
[408668651,1774101040419,-515.840372,0.00010959,2]
[408668653,1774101040429,-188.331015,0.00010959,2]
[408668655,1774101040439,-515.840372,0.00010959,2]
[408668656,1774101040448,-188.331015,0.00010959,2]
[408668657,1774101040458,-515.840372,0.00010959,2]
[408668659,1774101040467,-188.331015,0.00010959,2]
[408668661,1774101040476,-515.840372,0.00010959,2]
[408668662,1774101040486,-188.331015,0.00010959,2]
[408668663,1774101040496,-151.0,0.00010959,2]
[408668664,1774101040505,-151.0,0.00010959,2]
[408668666,1774101040514,-151.0,0.00010959,2]
[408668668,1774101040524,-300.223285,0.00010959,2]
[408668669,1774101040534,-151.0,0.00010959,2]
[408668670,1774101040545,-393.755517,0.00010959,2]
[408668671,1774101040554,-393.755517,0.00010959,2]
[408668672,1774101040564,-393.755517,0.00010959,2]
[408668673,1774101040574,-393.755517,0.00010959,2]
[408668674,1774101040585,-369.159836,0.00010959,2]
[408668675,1774101040595,-369.159836,0.00010959,2]
[408668676,1774101040605,-369.159836,0.00010959,2]
[408668677,1774101040616,-190.466886,0.00010959,2]
[408668678,1774101040626,-190.466886,0.00010959,2]
[408668679,1774101040636,-369.159836,0.00010959,2]
[408668680,1774101040645,-190.466886,0.00010959,2]
[408668681,1774101040656,-190.466886,0.00010959,2]
[408668682,1774101040669,-151.0,0.00010959,2]
[408668683,1774101040679,-3340.696821,0.00010959,2]
[408668684,1774101040689,-3340.696821,0.00010959,2]
[408668685,1774101040700,-3340.696821,0.00010959,2]
[408668686,1774101040709,-3340.696821,0.00010959,2]
[408668687,1774101040719,-2657.309431,0.00010959,2]
[408668688,1774101040729,-2657.309431,0.00010959,2]
[408668689,1774101040739,-2657.309431,0.00010959,2]
[408668690,1774101040748,-2657.309431,0.00010959,2]
[408668691,1774101040757,-1528.469932,0.00010959,2]
[408668692,1774101040767,-1528.469932,0.00010959,2]
[408668693,1774101040776,-1528.469932,0.00010959,2]
[408668694,1774101040785,-1528.469932,0.00010959,2]
[408668695,1774101040795,-151.0,0.00010959,2]
[408668696,1774101040804,-151.0,0.00010959,2]
[408668697,1774101040814,-300.0,0.00010973,2]
[408668698,1774101040824,-13819.1427432,0.0001099,2]
[408668699,1774101040834,-6634.48359201,0.00011,7]
[408668700,1774101040844,-130817.75343456,0.00011,2]
[408668701,1774101040882,-547.644,0.00011,2]
[408668704,1774101041061,-4285.97851812,0.00011,2]
[408668705,1774101041089,-647.17324618,0.00011,2]
[408668712,1774101043219,-1021.47584788,9.48e-05,2]
[408668713,1774101043231,-890.000002,9.48e-05,2]
[408668729,1774101046488,-274.17,9.48e-05,2]
[408668732,1774101681092,-887.25667227,8.396e-05,2]
[408668733,1774101681121,-1281.79020897,8.481e-05,2]
[408668734,1774101681178,-1140.59952321,8.481e-05,2]
[408668735,1774101710416,-2169.04688124,8.481e-05,2]
[408669426,1774101848762,300.0,2.002e-05,2]
[408669427,1774101848787,108.47,2.002e-05,2]
[408673092,1774102232395,-4246.79999999,4.741e-05,2]
[408673093,1774102232407,-440.14999995,4.741e-05,2]
[408673095,1774102232419,-313.05000006,4.741e-05,2]
[408673097,1774102232429,-1200.0,4.788e-05,2]
[408673099,1774102232438,-74.39187837,4.789e-05,2]
[408673115,1774102238305,-863.220022,4.741e-05,2]
[408673116,1774102238363,-714.0,4.741e-05,2]
[408673168,1774102243409,-3422.779978,4.741e-05,2]
[408673169,1774102243419,-4925.60812163,4.789e-05,2]
[408673171,1774102243429,-300.0,4.98e-05,2]
[408673172,1774102243438,-300.0,4.98e-05,2]
[408673173,1774102243448,-167.1846,5.035e-05,2]
[408673174,1774102243457,-300.0,5.135e-05,2]
[408673175,1774102243467,-300.0,5.135e-05,2]
[408673176,1774102243476,-300.0,5.135e-05,2]
[408673177,1774102243486,-300.0,5.135e-05,2]
[408673178,1774102243496,-300.0,5.135e-05,2]
[408673179,1774102243506,-300.0,5.135e-05,2]
[408673180,1774102243515,-300.0,5.135e-05,2]
[408673181,1774102243526,-300.0,5.135e-05,2]
[408673182,1774102243535,-300.0,5.135e-05,2]
[408673183,1774102243544,-300.0,5.135e-05,2]
[408673184,1774102243554,-300.0,5.135e-05,2]
[408673185,1774102243563,-300.0,5.135e-05,2]
[408673186,1774102243573,-300.0,5.135e-05,2]
[408673187,1774102243582,-300.0,5.135e-05,2]
[408673188,1774102243591,-300.0,5.135e-05,2]
[408673189,1774102243600,-313.0,5.267e-05,2]
[408673190,1774102243610,-167.1846,5.493e-05,2]
[408673191,1774102243620,-167.1846,5.951e-05,2]
[408673192,1774102243630,-167.1846,6.409e-05,2]
[408673193,1774102243640,-167.1846,6.866e-05,2]
[408673194,1774102243651,-167.1846,7.324e-05,2]
[408673195,1774102243661,-167.1846,7.782e-05,2]
[408673196,1774102243671,-167.1846,8.24e-05,2]
[408673197,1774102243684,-167.1846,8.697e-05,2]
[408673198,1774102243695,-167.1846,9.155e-05,2]
[408673199,1774102243705,-167.1846,9.613e-05,2]
[408673200,1774102243714,-2150.738,9.626e-05,2]
[408673201,1774102243725,-167.1846,0.00010071,2]
[408673202,1774102243735,-1402.0,0.000101,2]
[408673203,1774102243744,-2230.315306,0.00010174,2]
[408673204,1774102243755,-2312.83697232,0.00010722,2]
[408673205,1774102243764,-388.13736274,0.0001078,2]
[408673207,1774102243774,-3010.58063789,0.000108,2]
[408673209,1774102243783,-4383.13688355,0.000109,2]
[408673212,1774102243793,-3454.94320436,0.000109,2]
[408673214,1774102243805,-16467.33761548,0.000109,2]
[408673216,1774102243814,-284.0,0.00010959,3]
[408673218,1774102243824,-500.0,0.00010973,2]
[408673219,1774102243833,-7740.12524009,0.00011,2]
[408673223,1774102246434,-2750.20497789,0.00011,2]
[408673224,1774102246659,-43702.93289443,0.00011,2]
[408673225,1774102246727,-119777.85057659,0.00011,2]
[408673226,1774102246737,-1626.63,0.00011,2]
[408673227,1774102246747,-1626.63,0.00011,2]
[408673228,1774102246756,-325.59,0.00011,2]
[408673229,1774102246766,-281.0,0.00011,2]
[408673230,1774102246776,-151.0,0.00011,2]
[408673231,1774102246787,-151.0,0.00011,2]
[408673232,1774102246797,-151.0,0.00011,2]
[408673233,1774102246806,-151.0,0.00011,2]
[408673234,1774102246815,-151.0,0.00011,2]
[408673235,1774102246825,-151.0,0.00011,2]
[408673236,1774102246835,-264.655433,0.00011031,2]
[408673237,1774102246845,-4498.23656035,0.000111,2]
[408673238,1774102246855,-6279.0,0.00011111,5]
[408673239,1774102246865,-600.0,0.00011178,2]
[408673240,1774102246874,-151.0,0.000112,2]
[408673241,1774102246883,-151.0,0.000112,2]
[408673242,1774102246893,-151.0,0.000112,2]
[408673243,1774102246903,-151.0,0.000112,2]
[408673244,1774102246912,-2398.4119403,0.0001127,2]
[408673245,1774102246921,-4498.23656035,0.000113,2]
[408673246,1774102246930,-162.37944299,0.00011317,7]
[408673247,1774102246939,-170.20924775,0.00011346,7]
[408673248,1774102246949,-236.75590028,0.00011383,7]
[408673249,1774102246960,-321.5986262,0.00011383,7]
[408673250,1774102246972,-151.0,0.000114,2]
[408673251,1774102246982,-151.0,0.000114,2]
[408673252,1774102246992,-194.99977778,0.00011401,7]
[408673253,1774102247002,-152.0417379,0.00011401,7]
[408673254,1774102247013,-237.29725647,0.00011414,7]
[408673255,1774102247023,-226.54350859,0.00011414,7]
[408673256,1774102247034,-264.655433,0.00011428,2]
[408673257,1774102247044,-324.727049,0.0001149,2]
[408673258,1774102247054,-151.0,0.000115,2]
[408673259,1774102247063,-151.0,0.000115,2]
[408673260,1774102247074,-4498.23656035,0.000115,2]
[408673261,1774102247086,-454.9041994,0.0001152,2]
[408673262,1774102247095,-648.75394514,0.00011521,2]
[408673263,1774102247107,-155.916889,0.0001155,2]
[408673264,1774102247117,-153.43872844,0.00011584,7]
[408673265,1774102247127,-151.0,0.000116,2]
[408673266,1774102247137,-151.0,0.000117,2]
[408673267,1774102247146,-151.0,0.000117,2]
[408673268,1774102247155,-4498.23656035,0.000117,2]
[408673269,1774102247165,-151.0,0.000117,2]
[408673270,1774102247174,-151.0,0.000118,2]
[408673271,1774102247184,-2487.15318209,0.00011818,2]
[408673272,1774102247193,-2500.0,0.000119,2]
[408673273,1774102247205,-362.76247177,0.000119,2]
[408673274,1774102247215,-4498.23656035,0.000119,2]
[408673275,1774102247224,-151.0,0.000119,2]
[408673276,1774102247234,-172.20316389,0.00011901,7]
[408673277,1774102247246,-13807.03453558,0.00012,2]
[408673397,1774103432816,-800.0,7.449e-05,2]
[408673398,1774103432826,-641.85602,7.524e-05,2]
[408673448,1774103438602,-4358.14398,7.524e-05,2]
[408673449,1774103438612,-526.0,7.524e-05,2]
[408673450,1774103438622,-1000.0,7.599e-05,2]
[408673451,1774103438632,-5000.0,7.6e-05,2]
[408673452,1774103438642,-300.0,7.673e-05,2]
[408673453,1774103438652,-300.0,7.673e-05,2]
[408673454,1774103438663,-300.0,7.673e-05,2]
[408673455,1774103438672,-300.0,7.673e-05,2]
[408673456,1774103438682,-300.0,7.673e-05,2]
[408673457,1774103438692,-300.0,7.673e-05,2]
[408673458,1774103438701,-300.0,7.673e-05,2]
[408673459,1774103438711,-300.0,7.673e-05,2]
[408673460,1774103438720,-300.0,7.673e-05,2]
[408673461,1774103438730,-300.0,7.673e-05,2]
[408673462,1774103438739,-300.0,7.673e-05,2]
[408673463,1774103438750,-300.0,7.673e-05,2]
[408673464,1774103438759,-300.0,7.673e-05,2]
[408673465,1774103438768,-300.0,7.673e-05,2]
[408673466,1774103438778,-300.0,7.673e-05,2]
[408673467,1774103438787,-300.0,7.676e-05,2]
[408673468,1774103438796,-300.0,7.676e-05,2]
[408673469,1774103438805,-459.34763194,7.677e-05,2]
[408673470,1774103438814,-300.0,7.855e-05,2]
[408673471,1774103438824,-1200.0,7.934e-05,2]
[408673472,1774103438833,-499.7443193,8.26e-05,2]
[408673473,1774103438843,-360.0,8.444e-05,2]
[408673474,1774103438852,-1680.0,8.727e-05,2]
[408673475,1774103438862,-10000.0,9.4e-05,2]
[408673476,1774103438871,-10000.0,9.4e-05,2]
[408673477,1774103438881,-10000.0,9.401e-05,2]
[408673478,1774103438890,-218.58662236,9.403e-05,2]
[408673479,1774103438900,-600.0,9.587e-05,2]
[408673480,1774103438909,-2351.0,9.6e-05,2]
[408673481,1774103438919,-3000.0,9.689e-05,2]
[408673482,1774103438928,-438.0,9.689e-05,2]
[408673483,1774103438937,-735.0,9.689e-05,2]
[408673484,1774103438947,-186.672,9.689e-05,2]
[408673485,1774103438956,-2150.738,9.942e-05,2]
[408673486,1774103438966,-564.64431017,0.00010136,2]
[408673487,1774103438977,-1500.0,0.00010136,2]
[408673488,1774103438988,-40155.95774352,0.00010136,2]
[408673489,1774103439000,-2000.38884425,0.00010136,2]
[408673490,1774103439011,-41485.46830785,0.00010136,2]
[408673553,1774103441189,-2550.67868723,0.00010136,2]
[408673556,1774103441200,-808.4544273,0.00010136,2]
[408673558,1774103441212,-22123.05065958,0.00010136,2]
[408673560,1774103441226,-1177.93474205,0.00010136,2]
[408673790,1774103443713,-5000.0,0.00010035,2]
[408673791,1774103443723,-3008.41106366,0.00010136,2]
[408673793,1774103443735,-7807.39126634,0.00010136,2]
[408673802,1774103443890,-1357.39668019,0.00010136,2]
[408673821,1774103446782,-5825.08401985,0.00010136,2]
[408673822,1774103446842,-28024.64066622,0.00010136,2]
[408673823,1774103446854,-6794.02408107,0.00010136,2]
[408674116,1774104637829,-708.01,4.376e-05,2]
[408674318,1774104645939,-3291.99,4.376e-05,2]
[408674319,1774104645949,-5000.0,4.42e-05,2]
[408674320,1774104645958,-162.42658229,4.464e-05,2]
[408674321,1774104645970,-37.57341771,4.464e-05,2]
[408674322,1774104645980,-5000.0,4.465e-05,2]
[408674323,1774104645990,-300.0,4.553e-05,2]
[408674324,1774104645999,-300.0,4.553e-05,2]
[408674326,1774104646009,-300.0,4.553e-05,2]
[408674328,1774104646018,-300.0,4.553e-05,2]
[408674331,1774104646028,-300.0,4.553e-05,2]
[408674332,1774104646037,-300.0,4.553e-05,2]
[408674334,1774104646047,-202.95631,4.553e-05,2]
[408674335,1774104646058,-97.04369,4.553e-05,2]
[408674337,1774104646068,-300.0,4.553e-05,2]
[408674339,1774104646078,-300.0,4.553e-05,2]
[408674341,1774104646087,-300.0,4.553e-05,2]
[408674342,1774104646096,-300.0,4.553e-05,2]
[408674344,1774104646107,-300.0,4.553e-05,2]
[408674346,1774104646117,-300.0,4.553e-05,2]
[408674347,1774104646126,-300.0,4.553e-05,2]
[408674349,1774104646136,-300.0,4.553e-05,2]
[408674351,1774104646145,-179.126357,4.603e-05,2]
[408674352,1774104646155,-600.0,4.643e-05,2]
[408674354,1774104646165,-720.0,5.107e-05,2]
[408674356,1774104646175,-179.126357,5.37e-05,2]
[408674357,1774104646184,-864.0,5.618e-05,2]
[408674359,1774104646194,-179.126357,6.137e-05,2]
[408674361,1774104646203,-1000.0,6.18e-05,2]
[408674363,1774104646212,-1000.0,6.798e-05,2]
[408674364,1774104646222,-244.0,6.798e-05,2]
[408674366,1774104646231,-179.126357,6.904e-05,2]
[408674368,1774104646241,-1000.0,7.478e-05,2]
[408674370,1774104646251,-492.0,7.478e-05,2]
[408674372,1774104646260,-179.126357,7.671e-05,2]
[408674373,1774104646270,-1000.0,8.225e-05,2]
[408674374,1774104646279,-791.0,8.225e-05,2]
[408674375,1774104646289,-1192.0,8.437e-05,2]
[408674376,1774104646301,-179.126357,8.438e-05,2]
[408674377,1774104646310,-1000.0,9.048e-05,2]
[408674378,1774104646319,-1000.0,9.048e-05,2]
[408674379,1774104646328,-179.126357,9.205e-05,2]
[408674380,1774104646341,-161.31399345,9.402e-05,2]
[408674381,1774104646351,-300.0,9.433e-05,2]
[408674382,1774104646360,-161.31399344,9.666e-05,2]
[408674383,1774104646370,-267.023,9.703e-05,2]
[408674384,1774104646381,-1075.0714882,9.919e-05,2]
[408674385,1774104646390,-1000.0,9.953e-05,2]
[408674386,1774104646400,-1000.0,9.953e-05,2]
[408674387,1774104646409,-579.0,9.953e-05,2]
[408674388,1774104646419,-236.82915573,0.000105,60]
[408674389,1774104646428,-324.7177055,0.00010684,2]
[408674390,1774104646438,-2150.738,0.00010892,2]
[408674391,1774104646447,-1000.0,0.00010948,2]
[408674392,1774104646456,-1000.0,0.00010948,2]
[408674393,1774104646466,-1000.0,0.00010948,2]
[408674394,1774104646475,-171.0,0.00010959,3]
[408674395,1774104646484,-15380.3736,0.00010959,2]
[408674396,1774104646494,-199.0,0.00011,2]
[408674397,1774104646503,-151.0,0.00011,2]
[408674398,1774104646513,-1075.0714882,0.00011127,2]
[408674399,1774104646522,-151.0,0.000112,2]
[408674400,1774104646531,-151.0,0.000114,2]
[408674401,1774104646541,-2230.315306,0.0001144,2]
[408674402,1774104646550,-151.0,0.000115,2]
[408674403,1774104646559,-211.0,0.00011507,3]
[408674404,1774104646570,-5182.19079022,0.000116,2]
[408674405,1774104646579,-151.0,0.000117,2]
[408674406,1774104646588,-5208.23656036,0.000119,2]
[408674407,1774104646597,-151.0,0.000119,2]
[408674408,1774104646607,-500.74014982,0.00011973,2]
[408674409,1774104646617,-500.0,0.00011973,2]
[408674410,1774104646626,-500.0,0.00011973,2]
[408674411,1774104646635,-477.82054874,0.00011973,2]
[408674412,1774104646645,-500.52775023,0.00011973,2]
[408674413,1774104646654,-500.0,0.00011973,2]
[408674414,1774104646663,-500.0,0.00011973,2]
[408674415,1774104646673,-500.0,0.00011973,2]
[408674416,1774104646682,-500.0,0.00011973,2]
[408674417,1774104646692,-500.0,0.00011973,2]
[408674418,1774104646701,-2312.83697232,0.00011988,2]
[408674419,1774104646712,-32972.78755681,0.00012,2]
[408674420,1774104646724,-3461.90317999,0.00012,2]
[408674478,1774105224331,-1493.52606439,3.998e-05,2]
[408674479,1774105224354,-3506.47393561,3.998e-05,2]
[408674480,1774105253523,-1493.52606439,3.958e-05,2]
[408674563,1774105831837,-5000.0,3.615e-05,2]
[408674565,1774105831847,-328.31008837,3.652e-05,2]
[408674567,1774105831858,-1724.58869643,3.652e-05,2]
[408674569,1774105831869,-2947.1012152,3.652e-05,2]
[408674570,1774105831879,-708.01,3.689e-05,2]
[408674571,1774105831888,-300.0,3.763e-05,2]
[408674572,1774105831898,-414.0,3.763e-05,2]
[408674573,1774105831908,-113.9387394,5.97e-05,2]
[408674574,1774105831919,-161.7482416,5.97e-05,2]
[408674575,1774105831930,-203.46667632,9.155e-05,2]
[408674576,1774105831939,-73.62008213,0.00010907,2]
[408674577,1774105831952,-1734.2,0.00010907,2]
[408674591,1774105837939,-4185.59729105,3.579e-05,2]
[408674848,1774105845941,-1742.79467332,3.543e-05,2]
[408674860,1774105846192,-3257.20532668,3.543e-05,2]
[408674861,1774105846202,-814.40270895,3.579e-05,2]
[408674862,1774105846212,-342.32289437,0.00010907,2]
[408674863,1774105846221,-260.0,0.00010959,3]
[408674864,1774105846231,-5801.4826056,0.00011348,2]
[408674865,1774105846240,-2150.738,0.00011893,2]
[408674866,1774105846250,-500.0,0.00011973,2]
[408674868,1774105846259,-500.0,0.00011973,2]
[408674870,1774105846269,-500.0,0.00011973,2]
[408674872,1774105846278,-179478.9764478,0.00012,2]
[408675030,1774107032155,-5000.0,8.996e-05,2]
[408675031,1774107032166,-5000.0,9.087e-05,2]
[408675032,1774107032175,-547.0,9.087e-05,2]
[408675033,1774107032185,-165.7347823,0.00010049,2]
[408675034,1774107032196,-438.0,0.00010154,2]
[408675035,1774107032205,-360.412,0.00010154,2]
[408675036,1774107032215,-186.672,0.00010154,2]
[408675037,1774107032225,-178.469773,0.00010177,2]
[408675038,1774107032236,-300.0,0.00010253,2]
[408675039,1774107032246,-300.0,0.00010253,2]
[408675040,1774107032256,-300.0,0.00010253,2]
[408675041,1774107032266,-300.0,0.00010253,2]
[408675042,1774107032275,-300.0,0.00010253,2]
[408675043,1774107032285,-300.0,0.00010253,2]
[408675044,1774107032295,-300.0,0.00010253,2]
[408675045,1774107032304,-149.5114447,0.00010253,2]
[408675046,1774107032324,-150.4885553,0.00010253,2]
[408675047,1774107032334,-300.0,0.00010253,2]
[408675048,1774107032344,-272.02949429,0.00010253,2]
[408675077,1774107038169,-27.97050571,0.00010253,2]
[408675079,1774107038179,-300.0,0.00010253,2]
[408675081,1774107038188,-300.0,0.00010253,2]
[408675083,1774107038198,-300.0,0.00010253,2]
[408675084,1774107038207,-300.0,0.00010253,2]
[408675087,1774107038216,-300.0,0.00010253,2]
[408675089,1774107038226,-600.0,0.00010253,2]
[408675091,1774107038237,-236.82915573,0.000105,60]
[408675093,1774107038246,-265.0,0.00010959,3]
[408675095,1774107038255,-15380.3736,0.00010959,2]
[408675097,1774107038264,-1051.74036566,0.00011115,2]
[408675099,1774107038275,-23.33112254,0.00011115,2]
[408675101,1774107038284,-178.469773,0.00011248,2]
[408675103,1774107038294,-720.0,0.00011278,2]
[408675105,1774107038303,-2150.738,0.00011399,2]
[408675107,1774107038312,-7535.47559167,0.000118,2]
[408675109,1774107038323,-13367.51518706,0.000118,2]
[408675337,1774107043432,-3150.22131671,0.00011682,2]
[408675355,1774107046359,-1849.77868329,0.00011682,2]
[408675356,1774107046369,-1038.97169736,0.000118,2]
[408675357,1774107046380,-2230.315306,0.00011947,2]
[408675358,1774107046390,-500.74014982,0.00011973,2]
[408675359,1774107046400,-500.0,0.00011973,2]
[408675360,1774107046410,-500.0,0.00011973,2]
[408675361,1774107046420,-500.0,0.00011973,2]
[408675362,1774107046430,-500.52775023,0.00011973,2]
[408675363,1774107046440,-500.0,0.00011973,2]
[408675364,1774107046449,-500.0,0.00011973,2]
[408675365,1774107046460,-500.0,0.00011973,2]
[408675366,1774107046470,-3100.25655769,0.00012,2]
[408675367,1774107046486,-283572.73552028,0.00012,2]
[408675368,1774107046496,-258.75824183,0.00012,2]
[408675369,1774107046506,-151.0,0.00012,2]
[408675370,1774107046516,-151.0,0.00012,2]
[408675371,1774107046526,-151.0,0.00012,2]
[408675372,1774107046536,-151.0,0.00012,2]
[408675373,1774107046546,-151.0,0.00012,2]
[408675374,1774107046557,-151.0,0.00012,2]
[408675375,1774107046566,-151.0,0.00012,2]
[408675376,1774107046576,-151.0,0.00012,2]
[408675377,1774107046586,-236.25331,0.00012,2]
[408675378,1774107046595,-236.25331,0.00012,2]
[408675379,1774107046605,-236.25331,0.00012,2]
[408675380,1774107046615,-236.25331,0.00012,2]
[408675381,1774107046625,-236.25331,0.00012,2]
[408675382,1774107046635,-236.25331,0.00012,2]
[408675383,1774107046645,-236.25331,0.00012,2]
[408675384,1774107046654,-236.25331,0.00012,2]
[408675385,1774107046664,-2004.418093,0.00012,2]
[408675386,1774107046673,-2004.418093,0.00012,2]
[408675387,1774107046683,-151.0,0.00012,2]
[408675388,1774107046692,-2004.418093,0.00012,2]
[408675389,1774107046702,-151.0,0.00012,2]
[408675390,1774107046712,-2004.418093,0.00012,2]
[408675391,1774107046721,-2004.418093,0.00012,2]
[408675392,1774107046730,-2004.418093,0.00012,2]
[408675393,1774107046741,-2004.418093,0.00012,2]
[408675394,1774107046751,-2004.418093,0.00012,2]
[408675395,1774107046760,-151.0,0.00012,2]
[408675396,1774107046770,-151.0,0.00012,2]
[408675397,1774107046780,-151.0,0.00012,2]
[408675398,1774107046789,-151.0,0.00012,2]
[408675399,1774107046799,-151.0,0.00012,2]
[408675400,1774107046809,-151.0,0.00012,2]
[408675401,1774107046819,-1488.306366,0.00012,2]
[408675402,1774107046829,-1488.306366,0.00012,2]